bitfinex/quotes_SOLUSD_20250903
["timestamp","ask_amount","ask_price","bid_price","bid_amount"]
[1756915927991,3.52349565,211.36,211.35,41.78952138]
[1756915928301,0.06,211.4,211.39,33.49051363]
[1756915928802,4.0275197,211.4,211.39,19.89491962]
[1756915929380,4.0275197,211.4,211.37,19.89491962]
[1756915929680,4.0275197,211.4,211.31,3.3175197]
[1756915929681,26.0,211.37,211.32,19.89491962]
[1756915929889,3.2875197,211.33,211.32,19.89491962]
[1756915930204,41.0275197,211.33,211.32,19.89491962]
[1756915930401,40.3475197,211.33,211.32,19.89491962]
[1756915930989,41.0275197,211.33,211.32,19.89491962]
[1756915931504,44.54995227,211.33,211.32,19.89491962]
[1756915931703,41.26243257,211.33,211.32,19.89491962]
[1756915931925,48.07238282,211.33,211.31,19.92491962]
[1756915932106,7.74486312,211.32,211.31,19.92491962]
[1756915933207,7.04486312,211.32,211.31,19.92491962]
[1756915933505,40.56243055,211.32,211.31,19.92491962]
[1756915933890,37.04,211.32,211.31,19.92491962]
[1756915934103,41.0275197,211.32,211.31,19.92491962]
[1756915934306,44.55181361,211.32,211.31,19.92491962]
[1756915934501,40.56429391,211.32,211.31,19.92491962]
[1756915934706,43.85181361,211.32,211.31,19.92491962]
[1756915935908,44.55181361,211.32,211.31,19.92491962]
[1756915936208,49.28397336,211.32,211.31,19.92491962]
[1756915937316,41.26429391,211.32,211.31,19.92491962]
[1756915937518,3.52423751,211.32,211.31,19.92491962]
[1756915937814,42.15962708,211.34,211.31,19.92491962]
[1756915937988,3.52439681,211.33,211.31,19.92491962]
[1756915938190,42.15962708,211.34,211.31,19.92491962]
[1756915938386,8.66403877,211.33,211.31,19.92491962]
[1756915938588,37.02,211.34,211.31,19.92491962]
[1756915938794,5.13962708,211.35,211.31,0.03]
[1756915938992,0.7,211.35,211.34,19.89491962]
[1756915939192,0.7,211.35,211.31,0.03]
[1756915939193,4.22461563,211.35,211.32,19.89491962]
[1756915939403,41.24461563,211.34,211.32,19.89491962]
[1756915939623,4.22461563,211.33,211.32,19.89491962]
[1756915940120,9.36424271,211.33,211.32,19.89491962]
[1756915941330,3.52461563,211.33,211.32,19.89491962]
[1756915942118,37.72,211.37,211.34,19.89491962]
[1756915942322,8.6650096,211.36,211.34,19.89491962]
[1756915942519,42.15962708,211.37,211.34,24.62653207]
[1756915942818,26.0,211.38,211.36,19.89491962]
[1756915942819,5.13962708,211.38,211.36,19.89491962]
[1756915943021,3.52558712,211.37,211.36,19.89491962]
[1756915943318,9.3652142,211.37,211.36,19.89491962]
[1756915944497,14.09625455,211.37,211.34,19.89491962]
[1756915944698,5.13962708,211.35,211.31,19.92491962]
[1756915944902,5.13962708,211.32,211.31,19.92491962]
[1756915945208,9.3652142,211.32,211.31,19.92491962]
[1756915945917,9.3652142,211.32,211.31,0.03]
[1756915946218,14.50484128,211.32,211.31,0.03]
[1756915946420,19.23700103,211.32,211.31,0.03]
[1756915948819,29.52558712,211.32,211.31,0.03]
[1756915949023,3.52558712,211.32,211.31,0.03]
[1756915949218,8.6652142,211.32,211.31,0.03]
[1756915949521,9.3652142,211.32,211.31,0.03]
[1756915949725,19.23700103,211.32,211.31,0.03]
[1756915950111,14.09737395,211.32,211.31,0.03]
[1756915950813,3.52558712,211.32,211.31,0.03]
[1756915950998,8.6652142,211.32,211.31,0.03]
[1756915951203,3.52558712,211.32,211.31,0.03]
[1756915951498,8.6652142,211.32,211.31,0.03]
[1756915951698,8.66247381,211.32,211.31,0.03]
[1756915953503,3.52284673,211.32,211.31,0.03]
[1756915953702,8.66247381,211.32,211.31,0.03]
[1756915953905,5.13962708,211.33,211.32,19.89491962]
[1756915954098,0.7,211.39,211.36,19.89491962]
[1756915954313,8.72196639,211.37,211.36,19.89491962]
[1756915954828,3.58233931,211.37,211.36,19.89491962]
[1756915955013,5.19962708,211.37,211.36,19.89491962]
[1756915955803,5.89962708,211.37,211.34,19.89491962]
[1756915956004,5.13962708,211.35,211.32,19.89491962]
[1756915956211,0.7,211.35,211.34,19.89491962]
[1756915956432,5.83962708,211.35,211.34,19.89491962]
[1756915957323,10.57122502,211.35,211.32,19.89491962]
[1756915957524,26.0,211.32,211.31,0.03]
[1756915957726,36.27925416,211.32,211.31,0.03]
[1756915957916,36.97925416,211.32,211.31,0.03]
[1756915958315,74.03925416,211.32,211.31,0.03]
[1756915958516,68.89962708,211.32,211.31,0.03]
[1756915959514,68.49215975,211.32,211.31,0.03]
[1756915959720,78.77141391,211.32,211.31,0.03]
[1756915963822,78.77141391,211.32,211.29,0.03]
[1756915964020,5.13962708,211.3,211.29,0.03]
[1756915964213,42.17962708,211.3,211.29,0.03]
[1756915964419,42.89962708,211.3,211.28,0.03]
[1756915964835,5.13962708,211.29,211.28,0.03]
[1756915965329,5.85962708,211.29,211.28,0.03]
[1756915965534,10.59245873,211.29,211.28,0.03]
[1756915966420,26.0,211.23,211.08,4.73742223]
[1756915966738,5.13962708,211.13,211.1,0.31]
[1756915967212,5.13962708,211.13,211.11,0.31]
[1756915967413,5.13962708,211.12,211.11,0.31]
[1756915968209,41.85588822,211.16,211.11,0.31]
[1756915968413,37.12,211.16,211.11,0.31]
[1756915968615,5.13962708,211.13,211.12,0.31]
[1756915969141,5.13962708,211.13,211.09,13.59559401]
[1756915969336,5.13962708,211.12,211.1,0.31]
[1756915970020,5.13962708,211.13,211.1,0.31]
[1756915970422,5.13962708,211.12,211.1,0.31]
[1756915971221,5.13962708,211.11,211.1,5.04695019]
[1756915971921,5.13962708,211.12,211.1,5.04695019]
[1756915972117,0.72,211.19,211.11,13.90559401]
[1756915972323,37.84,211.21,211.13,13.59559401]
[1756915972630,37.84,211.21,211.11,13.59559401]
[1756915972631,5.13962708,211.17,211.14,0.31]
[1756915972830,5.13962708,211.15,211.14,0.31]
[1756915973339,5.13962708,211.15,211.14,18.641788]
[1756915973637,5.13962708,211.18,211.15,13.59559401]
[1756915973849,5.13962708,211.18,211.16,0.31]
[1756915974439,0.72,211.27,211.18,13.59559401]
[1756915974631,5.13962708,211.23,211.19,0.31]
[1756915974840,5.13962708,211.23,211.2,0.31]
[1756915975042,5.13962708,211.21,211.18,13.59559401]
[1756915975345,5.13962708,211.21,211.2,13.59559401]
[1756915975642,0.72,211.25,211.2,13.59559401]
[1756915975843,5.13962708,211.21,211.2,13.59559401]
[1756915976238,5.13962708,211.21,211.18,13.59559401]
[1756915976441,5.13962708,211.19,211.18,13.59559401]
[1756915976843,0.72,211.23,211.18,13.59559401]
[1756915977032,5.13962708,211.21,211.18,13.90559401]
[1756915977538,0.72,211.25,211.19,4.73507268]
[1756915977849,5.13962708,211.21,211.19,4.73507268]
[1756915978818,0.72,211.24,211.19,4.73507268]
[1756915979025,5.13962708,211.21,211.19,4.73507268]
[1756915979241,37.12,211.27,211.2,13.59559401]
[1756915979549,26.0,211.29,211.2,13.59559401]
[1756915979550,5.13962708,211.26,211.21,10.18425138]
[1756915979724,5.13962708,211.28,211.22,19.04522109]
[1756915979929,0.06,211.32,211.25,5.13962708]
[1756915980230,0.06,211.32,211.26,18.73522109]
[1756915980548,0.06,211.32,211.24,13.59559401]
[1756915980549,5.13962708,211.29,211.24,13.59559401]
[1756915980854,5.13962708,211.28,211.26,13.59559401]
[1756915981022,5.13962708,211.28,211.24,0.31]
[1756915981224,5.13962708,211.29,211.25,0.31]
[1756915981536,0.06,211.32,211.27,13.59559401]
[1756915981848,0.06,211.32,211.28,0.31]
[1756915982547,0.06,211.32,211.27,18.73522109]
[1756915982743,0.06,211.32,211.3,13.59559401]
[1756915983251,0.06,211.32,211.31,19.04522109]
[1756915983430,0.06,211.32,211.31,18.63797771]
[1756915984035,0.06,211.32,211.31,23.77760479]
[1756915984836,0.06,211.32,211.31,18.63797771]
[1756915985331,0.06,211.32,211.31,23.77760479]
[1756915986163,0.06,211.32,211.31,18.32797771]
[1756915988852,0.06,211.32,211.31,23.46760479]
[1756915989027,0.06,211.32,211.31,23.77760479]
[1756915989352,0.06,211.32,211.31,18.63797771]
[1756915989543,0.06,211.32,211.31,18.32797771]
[1756915989848,0.06,211.32,211.31,23.77760479]
[1756915990853,0.06,211.35,211.34,39.59559401]
[1756915991044,0.06,211.37,211.35,13.87991715]
[1756915991242,0.06,211.37,211.36,19.01954423]
[1756915991441,0.06,211.37,211.36,19.32954423]
[1756915991756,0.06,211.37,211.36,19.01954423]
[1756915992060,0.06,211.37,211.36,56.48954423]
[1756915992558,1e-08,211.4,211.39,39.59559401]
[1756915992758,1e-08,211.4,211.39,45.30289221]
[1756915992951,1e-08,211.4,211.39,45.89721535]
[1756915993155,1e-08,211.4,211.39,47.79272536]
[1756915994065,1e-08,211.4,211.39,84.99272536]
[1756915994268,1e-08,211.41,211.4,13.87991715]
[1756915994462,1e-08,211.41,211.4,24.05991319]
[1756915994969,1e-08,211.41,211.4,61.23991319]
[1756915995340,0.06,211.43,211.42,39.87991715]
[1756915995558,0.06,211.43,211.42,52.24049046]
[1756915995854,1e-08,211.43,211.42,52.55049046]
[1756915996042,1e-08,211.43,211.42,54.44564124]
[1756915996242,0.06,211.48,211.43,13.87991715]
[1756915996453,0.06,211.48,211.44,93.86558771]
[1756915996672,0.06,211.48,211.44,94.17558771]
[1756915996838,0.06,211.48,211.44,56.99558771]
[1756915997039,0.66,211.47,211.44,18.32506809]
[1756915997252,0.72,211.45,211.44,55.50506809]
[1756915997452,0.72,211.45,211.44,55.52506809]
[1756915998362,12.51298274,211.45,211.41,4.73014521]
[1756915998558,12.51298274,211.45,211.39,13.59559401]
[1756915998559,12.45298274,211.44,211.39,13.59559401]
[1756915998861,11.79298274,211.42,211.39,13.59559401]
[1756915999051,11.79298274,211.42,211.41,13.59559401]
[1756915999458,7.98550095,211.42,211.41,13.59559401]
[1756915999645,8.64550095,211.42,211.41,13.59559401]
[1756915999962,0.66,211.42,211.41,13.59559401]
[1756916000169,8.64550095,211.42,211.4,37.2]
[1756916000337,8.64550095,211.41,211.4,13.59559401]
[1756916000542,0.66,211.41,211.4,13.59559401]
[1756916000745,0.66,211.41,211.36,12.71655595]
[1756916000944,0.66,211.4,211.38,13.59559401]
[1756916002277,8.64550095,211.39,211.34,13.59559401]
[1756916002442,26.0,211.43,211.34,50.79559401]
[1756916002443,7.98550095,211.36,211.34,50.79559401]
[1756916002758,0.66,211.36,211.35,13.59559401]
[1756916003169,0.66,211.36,211.32,7.98550095]
[1756916003366,0.66,211.36,211.34,13.59559401]
[1756916003751,0.66,211.36,211.34,18.32721746]
[1756916005865,0.66,211.39,211.35,7.98550095]
[1756916006166,8.64550095,211.42,211.37,21.58109496]
[1756916006342,7.98550095,211.38,211.33,18.32752208]
[1756916006544,8.64550095,211.37,211.36,13.59559401]
[1756916006740,0.66,211.37,211.36,13.59559401]
[1756916008043,30.78964531,211.44,211.36,18.3268582]
[1756916008244,7.98550095,211.39,211.36,18.3268582]
[1756916008445,0.66,211.38,211.36,18.3268582]
[1756916008645,7.98550095,211.39,211.36,18.3268582]
[1756916008962,8.64550095,211.4,211.36,18.3268582]
[1756916009166,0.66,211.39,211.36,18.3268582]
[1756916009662,7.98550095,211.39,211.36,18.3268582]
[1756916009862,0.66,211.38,211.36,18.3268582]
[1756916010068,7.98550095,211.37,211.32,13.87991715]
[1756916010257,0.66,211.36,211.34,13.59559401]
[1756916010441,7.98550095,211.38,211.34,13.59559401]
[1756916010646,0.66,211.39,211.34,13.59559401]
[1756916010647,7.98550095,211.39,211.34,13.59559401]
[1756916010867,8.64550095,211.39,211.34,13.59559401]
[1756916011059,0.66,211.38,211.34,13.59559401]
[1756916012565,8.64550095,211.38,211.34,18.32714595]
[1756916012951,7.98550095,211.38,211.34,18.32714595]
[1756916013144,8.64550095,211.38,211.34,18.32714595]
[1756916013343,0.66,211.38,211.34,26.3126469]
[1756916014869,0.66,211.38,211.36,13.59559401]
[1756916015172,0.66,211.38,211.36,37.12]
[1756916016269,0.66,211.42,211.37,13.59559401]
[1756916016476,0.06,211.44,211.37,13.59559401]
[1756916016477,8.64550095,211.41,211.37,13.59559401]
[1756916016854,8.64550095,211.41,211.39,13.59559401]
[1756916017066,0.66,211.41,211.39,50.71559401]
[1756916017569,3.28549167,211.42,211.39,50.71559401]
[1756916017865,3.28549167,211.43,211.39,50.71559401]
[1756916018058,3.94549167,211.43,211.39,50.71559401]
[1756916018243,0.06,211.44,211.39,50.71559401]
[1756916018443,3.28549167,211.42,211.39,50.71559401]
[1756916018656,0.66,211.41,211.39,50.71559401]
[1756916018874,3.94549167,211.41,211.4,37.1]
[1756916019875,3.94549167,211.41,211.36,8.01654958]
[1756916020050,3.28549167,211.38,211.35,4.73147756]
[1756916020252,3.28549167,211.36,211.34,4.73165143]
[1756916020552,3.28549167,211.37,211.36,13.59559401]
[1756916020754,3.94549167,211.37,211.36,13.59559401]
[1756916022055,3.94549167,211.37,211.35,37.08]
[1756916022256,3.95549167,211.36,211.35,37.08]
[1756916024079,3.28549167,211.36,211.35,37.08]
[1756916024268,0.67,211.41,211.35,41.81146298]
[1756916024452,30.7896922,211.44,211.35,41.81146298]
[1756916024453,3.28549167,211.39,211.35,41.81146298]
[1756916024654,0.67,211.39,211.35,41.81146298]
[1756916025082,3.95549167,211.39,211.35,41.81146298]
[1756916025665,3.28549167,211.4,211.36,13.59559401]
[1756916025864,3.95549167,211.42,211.36,17.19108568]
[1756916026054,3.28549167,211.42,211.38,13.59559401]
[1756916026254,3.95549167,211.42,211.39,37.06]
[1756916027076,3.95549167,211.42,211.39,41.79045504]
[1756916027978,3.28549167,211.43,211.39,41.79045504]
[1756916028172,3.95549167,211.43,211.39,41.79045504]
[1756916028580,3.28549167,211.43,211.39,41.79045504]
[1756916028764,3.95549167,211.42,211.39,41.79045504]
[1756916030479,3.28549167,211.41,211.38,18.32636411]
[1756916030686,3.28549167,211.39,211.38,50.61559401]
[1756916030868,0.67,211.39,211.38,50.61559401]
[1756916031184,3.95549167,211.39,211.35,4.73148805]
[1756916031388,3.28549167,211.37,211.35,4.73148805]
[1756916031574,3.28549167,211.37,211.36,50.61559401]
[1756916032282,0.67,211.38,211.36,50.61559401]
[1756916032464,3.28549167,211.37,211.36,55.3468582]
[1756916032984,3.28549167,211.37,211.36,13.59559401]
[1756916033183,3.28549167,211.37,211.36,50.59559401]
[1756916034484,3.28549167,211.38,211.36,13.59559401]
[1756916034688,4.73048297,211.4,211.36,13.59559401]
[1756916034689,3.95549167,211.37,211.36,37.0]
[1756916034874,3.95549167,211.37,211.34,0.03]
[1756916035187,3.28549167,211.37,211.35,37.0]
[1756916035389,3.28549167,211.38,211.35,37.0]
[1756916035568,3.28549167,211.36,211.34,0.03]
[1756916035886,0.67,211.37,211.35,37.0]
[1756916036183,3.28549167,211.38,211.35,37.0]
[1756916036692,3.95549167,211.37,211.35,41.73142358]
[1756916036863,0.67,211.36,211.35,41.73142358]
[1756916037063,0.67,211.36,211.35,37.0]
[1756916037282,0.67,211.36,211.34,0.03]
[1756916037487,0.67,211.36,211.34,37.01]
[1756916037488,3.95549167,211.36,211.34,37.01]
[1756916038571,0.67,211.35,211.34,37.01]
[1756916039382,3.28549167,211.37,211.34,41.74154273]
[1756916039565,0.67,211.37,211.34,41.74154273]
[1756916040172,157.56,211.44,211.35,13.59559401]
[1756916040486,3.28549167,211.41,211.36,36.96]
[1756916040671,3.28549167,211.41,211.37,13.59559401]
[1756916040868,3.28549167,211.42,211.38,36.98]
[1756916041192,3.95549167,211.42,211.38,36.98]
[1756916041378,3.95549167,211.42,211.39,18.32618675]
[1756916041571,3.28549167,211.43,211.4,36.98]
[1756916041787,3.95549167,211.43,211.4,36.98]
[1756916042676,3.28549167,211.43,211.4,36.98]
[1756916043374,3.28549167,211.43,211.4,41.71016991]
[1756916044189,0.06,211.44,211.41,13.59559401]
[1756916044385,0.06,211.44,211.42,36.96]
[1756916046081,0.06,211.44,211.42,41.68975309]
[1756916046677,0.06,211.44,211.43,13.59559401]
[1756916048083,0.06,211.44,211.43,18.32529178]
[1756916048278,0.06,211.44,211.43,21.61078345]
[1756916048482,0.06,211.44,211.43,21.92078345]
[1756916049394,0.06,211.44,211.43,18.63529178]
[1756916049577,0.06,211.44,211.43,21.92078345]
[1756916049776,0.06,211.44,211.43,22.20510659]
[1756916050192,0.06,211.45,211.44,0.28432314]
[1756916050401,1e-08,211.45,211.44,55.0029457]
[1756916052097,1e-08,211.45,211.44,59.73241978]
[1756916054799,0.65000001,211.45,211.44,18.32506809]
[1756916054985,0.65000001,211.45,211.44,55.28506809]
[1756916055985,0.65000001,211.45,211.44,50.55559401]
[1756916056598,0.65000001,211.45,211.44,55.28506809]
[1756916057206,0.65000001,211.45,211.44,50.55559401]
[1756916057402,0.65000001,211.45,211.44,55.28506809]
[1756916059309,1e-08,211.45,211.44,55.28506809]
[1756916059526,1e-08,211.45,211.44,60.41497592]
[1756916063606,1e-08,211.45,211.44,61.00929906]
[1756916063910,1e-08,211.46,211.45,39.87991715]
[1756916064087,0.2,211.54,211.46,44.60894391]
[1756916064292,0.2,211.54,211.53,18.72550184]
[1756916064609,0.2,211.54,211.53,50.55559401]
[1756916064784,0.85,211.54,211.53,50.55559401]
[1756916066195,0.85,211.54,211.53,55.28305583]
[1756916066393,0.2,211.54,211.53,55.28305583]
[1756916066795,5.97990783,211.54,211.51,4.72774526]
[1756916067001,0.65,211.53,211.52,50.53559401]
[1756916068094,0.65,211.53,211.52,55.26327933]
[1756916068292,0.65,211.53,211.52,4.72768532]
[1756916068502,0.65,211.53,211.52,41.66768532]
[1756916070999,0.65,211.53,211.52,36.94]
[1756916072998,0.65,211.53,211.51,13.59559401]
[1756916073200,0.65,211.53,211.47,42.50534745]
[1756916073201,5.77990783,211.52,211.47,26.0]
[1756916073406,5.12990783,211.5,211.48,50.53559401]
[1756916073609,0.65,211.49,211.48,36.94]
[1756916073814,0.65,211.49,211.48,50.53559401]
[1756916074298,5.12990783,211.51,211.48,50.53559401]
[1756916074618,0.65,211.5,211.48,50.53559401]
[1756916075707,0.65,211.49,211.48,55.26413151]
[1756916076313,0.65,211.49,211.48,18.32413151]
[1756916076511,0.65,211.49,211.48,55.26413151]
[1756916076911,5.77990783,211.49,211.45,13.59559401]
[1756916077103,5.12990783,211.46,211.45,13.59559401]
[1756916077302,5.77990783,211.46,211.45,50.53559401]
[1756916077507,5.77990783,211.46,211.45,13.59559401]
[1756916077816,5.77990783,211.46,211.44,36.94]
[1756916078009,5.77990783,211.46,211.44,41.69944107]
[1756916078609,0.65,211.45,211.44,55.29503508]
[1756916079705,5.12990783,211.46,211.44,55.29503508]
[1756916079905,5.77990783,211.46,211.44,55.29503508]
[1756916080421,0.06,211.5,211.44,55.29503508]
[1756916080614,0.65,211.45,211.44,55.29503508]
[1756916081221,0.65,211.47,211.44,55.29503508]
[1756916081420,5.77990783,211.46,211.44,55.29503508]
[1756916081613,0.65,211.46,211.44,55.29503508]
[1756916081818,0.66,211.46,211.44,55.29503508]
[1756916082320,5.12990783,211.47,211.44,55.29503508]
[1756916082528,0.66,211.49,211.44,55.29503508]
[1756916082713,5.12990783,211.48,211.44,55.29503508]
[1756916082914,0.66,211.47,211.44,55.29503508]
[1756916083598,0.66,211.47,211.44,18.35503508]
[1756916083821,0.66,211.47,211.45,41.66913394]
[1756916084001,0.66,211.46,211.45,41.66913394]
[1756916084206,0.66,211.46,211.45,36.94]
[1756916086421,0.06,211.5,211.45,41.66925041]
[1756916086422,5.78990783,211.48,211.45,41.66925041]
[1756916086733,0.66,211.47,211.45,41.66925041]
[1756916087535,0.06,211.5,211.45,41.66925041]
[1756916087739,5.78990783,211.49,211.45,41.66925041]
[1756916087913,5.12990783,211.48,211.45,41.66925041]
[1756916088532,5.12990783,211.49,211.46,13.59559401]
[1756916088711,5.78990783,211.49,211.47,36.94]
[1756916088917,5.18990783,211.5,211.47,36.94]
[1756916089116,5.84990783,211.5,211.47,36.94]
[1756916089617,0.06,211.5,211.49,13.59559401]
[1756916089817,0.06,211.5,211.49,50.53559401]
[1756916090021,0.72,211.5,211.49,50.53559401]
[1756916090221,0.06,211.5,211.49,50.53559401]
[1756916091018,0.06,211.5,211.49,55.26394996]
[1756916091330,0.06,211.5,211.49,36.94]
[1756916092060,0.06,211.5,211.49,50.53559401]
[1756916092541,0.06,211.5,211.49,13.59559401]
[1756916092713,0.72,211.5,211.49,50.53559401]
[1756916093215,0.06,211.5,211.49,50.53559401]
[1756916093424,0.06,211.5,211.49,55.26394996]
[1756916093829,0.06,211.5,211.49,60.70385779]
[1756916094920,0.06,211.5,211.49,60.98818093]
[1756916097141,0.06,211.5,211.49,55.26394996]
[1756916098347,0.06,211.5,211.49,60.39385779]
[1756916100131,0.06,211.5,211.49,25.34882901]
[1756916100330,5.84990783,211.5,211.49,15.49056523]
[1756916100556,5.84990783,211.5,211.45,0.03]
[1756916100734,5.12990783,211.48,211.47,13.59559401]
[1756916101049,5.78990783,211.48,211.47,13.59559401]
[1756916101235,0.66,211.48,211.47,13.59559401]
[1756916101439,0.66,211.48,211.45,13.62559401]
[1756916101625,0.66,211.48,211.47,13.59559401]
[1756916101626,5.78990783,211.48,211.47,13.59559401]
[1756916101825,5.12990783,211.48,211.47,13.59559401]
[1756916102044,5.12990783,211.48,211.47,50.51559401]
[1756916102260,0.06,211.5,211.47,50.51559401]
[1756916102436,0.06,211.5,211.48,13.59559401]
[1756916102861,0.66,211.49,211.48,13.59559401]
[1756916103749,5.78990783,211.49,211.48,50.51559401]
[1756916104350,0.66,211.49,211.48,50.51559401]
[1756916104567,5.78990783,211.49,211.48,50.51559401]
[1756916104948,0.66,211.49,211.48,50.51559401]
[1756916105146,5.78990783,211.49,211.48,50.51559401]
[1756916105454,0.06,211.5,211.49,13.59559401]
[1756916106050,0.06,211.5,211.49,18.32394996]
[1756916106354,5.18990783,211.5,211.49,36.92]
[1756916106557,1e-08,211.53,211.52,39.59559401]
[1756916106861,1e-08,211.54,211.53,13.87991715]
[1756916107153,1e-08,211.54,211.53,36.94]
[1756916107357,1e-08,211.54,211.53,50.53559401]
[1756916107928,1e-08,211.54,211.53,55.66550184]
[1756916109735,1e-08,211.54,211.53,55.26305583]
[1756916110053,0.66000001,211.54,211.53,18.32305583]
[1756916110250,0.66000001,211.54,211.53,55.26305583]
[1756916111058,0.66000001,211.54,211.53,13.59559401]
[1756916111250,0.66000001,211.54,211.47,13.59559401]
[1756916111251,5.78990784,211.54,211.47,13.59559401]
[1756916111451,5.78990783,211.53,211.49,13.59559401]
[1756916111752,0.66,211.52,211.5,36.96]
[1756916111954,0.68,211.52,211.5,36.96]
[1756916112351,0.68,211.52,211.51,36.96]
[1756916112550,5.80990783,211.52,211.51,36.96]
[1756916112743,5.80990783,211.52,211.49,13.59559401]
[1756916113059,5.80990783,211.51,211.5,36.96]
[1756916113451,0.68,211.51,211.5,36.96]
[1756916113763,5.12990783,211.52,211.5,36.96]
[1756916113964,5.80990783,211.52,211.47,4.72876692]
[1756916114163,4.72725758,211.54,211.45,0.03]
[1756916114164,5.12990783,211.48,211.45,0.03]
[1756916114361,5.12990783,211.47,211.46,36.94]
[1756916114658,5.80990783,211.47,211.46,36.94]
[1756916116154,5.80990783,211.47,211.45,0.03]
[1756916116361,5.80990783,211.46,211.45,0.03]
[1756916119047,0.68,211.46,211.45,0.03]
[1756916119248,30.72813177,211.51,211.45,13.62559401]
[1756916119249,0.68,211.5,211.45,13.62559401]
[1756916119453,3.28330647,211.48,211.45,13.62559401]
[1756916119766,3.96330647,211.47,211.46,36.94]
[1756916120269,3.28330647,211.48,211.46,41.66899813]
[1756916120559,3.96330647,211.48,211.46,36.94]
[1756916120951,3.28330647,211.48,211.46,36.94]
[1756916121465,3.96330647,211.48,211.46,36.94]
[1756916121672,3.96330647,211.47,211.45,0.03]
[1756916121885,3.28330647,211.46,211.45,0.03]
[1756916122245,3.96330647,211.46,211.45,0.03]
[1756916122559,0.68,211.46,211.45,0.03]
[1756916122747,3.96330647,211.46,211.45,0.03]
[1756916123741,3.96330647,211.46,211.44,0.03]
[1756916123742,8.69233323,211.46,211.44,0.03]
[1756916123948,3.28330647,211.45,211.42,0.03]
[1756916124150,3.28330647,211.43,211.42,0.03]
[1756916124552,3.96330647,211.43,211.42,0.03]
[1756916126671,8.69300424,211.43,211.42,0.03]
[1756916127157,3.28330647,211.42,211.41,0.03]
[1756916127352,3.28330647,211.42,211.39,0.03]
[1756916127353,26.0,211.41,211.39,0.03]
[1756916127544,26.68,211.41,211.39,0.03]
[1756916127748,3.28330647,211.4,211.39,0.03]
[1756916128171,3.96330647,211.4,211.39,0.03]
[1756916128378,8.69367543,211.4,211.39,0.03]
[1756916131166,8.69367543,211.4,211.38,0.03]
[1756916131362,8.01389921,211.39,211.38,0.03]
[1756916131873,8.69389921,211.39,211.38,0.03]
[1756916137980,40.90330647,211.39,211.38,0.03]
[1756916138973,3.28330647,211.39,211.38,0.03]
[1756916139369,131.5,211.41,211.38,0.03]
[1756916139569,3.28330647,211.39,211.38,0.03]
[1756916140592,3.96330647,211.39,211.38,0.03]
[1756916140799,3.28330647,211.39,211.38,0.03]
[1756916142369,3.96330647,211.39,211.38,0.03]
[1756916142882,3.28330647,211.39,211.38,0.03]
[1756916145971,168.44,211.41,211.38,0.03]
[1756916146171,3.96330647,211.39,211.38,0.03]
[1756916148875,3.28330647,211.39,211.38,0.03]
[1756916149880,3.96330647,211.39,211.38,0.03]
[1756916151981,131.5,211.41,211.38,0.03]
[1756916152186,0.68,211.46,211.38,0.4]
[1756916152397,37.62,211.46,211.38,3.68330647]
[1756916152606,3.28330647,211.43,211.38,0.4]
[1756916152768,3.28330647,211.43,211.39,0.37]
[1756916152968,3.28330647,211.42,211.39,0.37]
[1756916153168,3.28330647,211.42,211.4,4.73036896]
[1756916153988,0.68,211.45,211.4,4.73036896]
[1756916154194,3.28330647,211.43,211.4,4.73036896]
[1756916154988,0.68,211.45,211.4,4.73036896]
[1756916155301,3.28330647,211.43,211.4,4.73036896]
[1756916157506,3.28330647,211.42,211.39,13.59559401]
[1756916157688,3.28330647,211.4,211.38,13.62559401]
[1756916157874,0.68,211.43,211.38,13.62559401]
[1756916157875,3.28330647,211.41,211.38,13.62559401]
[1756916158202,36.94,211.46,211.38,13.99559401]
[1756916158411,3.28330647,211.42,211.38,13.99559401]
[1756916158579,3.28330647,211.41,211.38,18.35632292]
[1756916158994,3.28330647,211.41,211.38,18.72632292]
[1756916159210,3.28330647,211.42,211.39,0.37]
[1756916159380,3.28330647,211.4,211.38,0.03]